fUST/lending_fUST_20250429
["ID","MTS","AMOUNT","RATE_DAILY","PERIOD"]
[359318523,1745919035003,-400.0,0.00035616,3]
[359318524,1745919035012,-894.2,0.00035616,3]
[359318525,1745919035021,-400.0,0.00035616,3]
[359318526,1745919035029,-400.0,0.00035616,3]
[359318527,1745919035038,-400.0,0.00035616,3]
[359318528,1745919035046,-400.0,0.00035616,3]
[359318529,1745919035055,-400.0,0.00035616,3]
[359318530,1745919035063,-400.0,0.00035616,3]
[359318531,1745919035072,-955.84,0.00035616,3]
[359318532,1745919035080,-400.0,0.00035616,3]
[359318533,1745919035088,-400.0,0.00035616,3]
[359318534,1745919035097,-3360.57,0.00035616,3]
[359318535,1745919035105,-400.0,0.00035616,3]
[359318536,1745919035113,-1676.99,0.00035616,3]
[359318537,1745919035122,-400.0,0.00035616,3]
[359318538,1745919035130,-400.0,0.00035616,3]
[359318539,1745919035138,-2108.44,0.00035616,3]
[359318540,1745919035146,-400.0,0.00035616,3]
[359318541,1745919035155,-400.0,0.00035616,3]
[359318542,1745919035164,-400.71558451,0.00035616,3]
[359318543,1745919035173,-400.0,0.00035616,3]
[359318544,1745919035182,-153.23139584,0.00035616,3]
[359318545,1745919035191,-779.61,0.00035616,3]
[359318546,1745919035199,-400.0,0.00035616,3]
[359318547,1745919035207,-400.0,0.00035616,3]
[359318548,1745919035216,-400.0,0.00035616,3]
[359318549,1745919035225,-400.0,0.00035616,3]
[359318550,1745919035234,-741.06,0.00035616,3]
[359318551,1745919035244,-205.47561738,0.00035616,3]
[359318552,1745919035253,-400.0,0.00035616,3]
[359318553,1745919035262,-400.0,0.00035616,3]
[359318554,1745919035272,-400.0,0.00035616,3]
[359318555,1745919035281,-727.4,0.00035616,3]
[359318556,1745919035290,-585.23,0.00035616,3]
[359318557,1745919035299,-400.0,0.00035616,3]
[359318558,1745919035309,-203.06053874,0.00035616,3]
[359318559,1745919035318,-400.0,0.00035616,3]
[359318560,1745919035327,-538.31,0.00035616,3]
[359318561,1745919035337,-400.0,0.00035616,3]
[359318562,1745919035347,-551.14,0.00035616,3]
[359318563,1745919035357,-400.0,0.00035616,3]
[359318564,1745919035366,-400.0,0.00035616,3]
[359318565,1745919035375,-482.96,0.00035616,3]
[359318566,1745919035384,-400.0,0.00035616,3]
[359318567,1745919035394,-417.7211418,0.00035616,3]
[359318568,1745919035403,-400.0,0.00035616,3]
[359318569,1745919035414,-1607.32,0.00035616,3]
[359318570,1745919035424,-1177.32,0.00035616,3]
[359318571,1745919035434,-400.0,0.00035616,3]
[359318572,1745919035443,-400.0,0.00035616,3]
[359318573,1745919035451,-400.0,0.00035616,3]
[359318574,1745919035458,-400.0,0.00035616,3]
[359318575,1745919035467,-400.0,0.00035616,3]
[359318576,1745919035475,-400.0,0.00035616,3]
[359318577,1745919035485,-400.0,0.00035616,3]
[359318578,1745919035494,-668.75,0.00035616,3]
[359318579,1745919035502,-402.53926148,0.00035616,3]
[359318580,1745919035511,-400.0,0.00035616,3]
[359318581,1745919035520,-400.0,0.00035616,3]
[359318582,1745919035528,-400.0,0.00035616,3]
[359318583,1745919035536,-906.81,0.00035616,3]
[359318584,1745919035545,-400.0,0.00035616,3]
[359318585,1745919035554,-400.0,0.00035616,3]
[359318586,1745919035563,-1065.71,0.00035616,3]
[359318587,1745919035571,-400.0,0.00035616,3]
[359318588,1745919035579,-400.0,0.00035616,3]
[359318589,1745919035589,-400.0,0.00035616,3]
[359318590,1745919035597,-1000.0,0.00035616,5]
[359318591,1745919035606,-400.0,0.00035616,3]
[359318592,1745919035615,-400.0,0.00035616,3]
[359318593,1745919035623,-400.0,0.00035616,3]
[359318594,1745919035632,-400.0,0.00035616,3]
[359318595,1745919035647,-400.0,0.00035616,3]
[359318596,1745919035655,-400.0,0.00035616,3]
[359318597,1745919035663,-400.0,0.00035616,3]
[359318598,1745919035673,-400.0,0.00035616,3]
[359318599,1745919035682,-400.0,0.00035616,3]
[359318600,1745919035690,-400.0,0.00035616,3]
[359318601,1745919035698,-400.0,0.00035616,3]
[359318602,1745919035707,-344.45510145,0.00035616,3]
[359318603,1745919035717,-400.0,0.00035616,3]
[359318604,1745919035726,-462.69,0.00035616,3]
[359318605,1745919035735,-381.63348913,0.00035616,3]
[359318606,1745919035744,-400.0,0.00035616,3]
[359318607,1745919035753,-400.0,0.00035616,3]
[359318608,1745919035767,-400.0,0.00035616,3]
[359318609,1745919035775,-400.0,0.00035616,3]
[359318610,1745919035784,-307.80533559,0.00035616,3]
[359318611,1745919035793,-400.0,0.00035616,3]
[359318612,1745919035802,-400.0,0.00035616,3]
[359318613,1745919035810,-400.0,0.00035616,3]
[359318614,1745919035819,-400.0,0.00035616,3]
[359318615,1745919035829,-400.0,0.00035616,3]
[359318616,1745919035838,-300.0,0.00035616,3]
[359318617,1745919035848,-569.23,0.00035616,3]
[359318618,1745919035857,-400.0,0.00035616,3]
[359318619,1745919035866,-437.01,0.00035616,3]
[359318620,1745919035876,-400.0,0.00035616,3]
[359318621,1745919035885,-400.0,0.00035616,3]
[359318622,1745919035895,-400.0,0.00035616,3]
[359318623,1745919035904,-400.0,0.00035616,3]
[359318624,1745919035916,-400.0,0.00035616,3]
[359318625,1745919035926,-400.0,0.00035616,3]
[359318626,1745919035935,-400.0,0.00035616,3]
[359318627,1745919035945,-400.0,0.00035616,3]
[359318628,1745919035955,-400.0,0.00035616,3]
[359318629,1745919035965,-400.0,0.00035616,3]
[359318630,1745919035975,-219.75931548,0.00035616,3]
[359318631,1745919035985,-445.26710563,0.00035616,3]
[359318632,1745919035995,-1405.46,0.00035616,3]
[359318633,1745919036005,-400.0,0.00035616,3]
[359318634,1745919036015,-400.0,0.00035616,3]
[359318635,1745919036024,-400.0,0.00035616,3]
[359318636,1745919036033,-400.0,0.00035616,3]
[359318637,1745919036044,-400.0,0.00035616,3]
[359318638,1745919036053,-161.053525,0.00035616,14]
[359318639,1745919036063,-606.64,0.00035616,3]
[359318640,1745919036072,-400.0,0.00035616,3]
[359318641,1745919036081,-400.0,0.00035616,3]
[359318642,1745919036090,-602.76,0.00035616,3]
[359318643,1745919036100,-1017.52,0.00035616,3]
[359318644,1745919036109,-400.0,0.00035616,3]
[359318645,1745919036118,-400.0,0.00035616,3]
[359318646,1745919036127,-400.0,0.00035616,3]
[359318647,1745919036136,-400.0,0.00035616,3]
[359318648,1745919036146,-400.0,0.00035616,3]
[359318649,1745919036155,-226.90750856,0.00035616,3]
[359318650,1745919036164,-1101.68,0.00035616,3]
[359318651,1745919036173,-400.0,0.00035616,3]
[359318652,1745919036183,-400.0,0.00035616,3]
[359318653,1745919036194,-400.0,0.00035616,3]
[359318654,1745919036204,-403.08296802,0.00035616,3]
[359318655,1745919036214,-400.0,0.00035616,3]
[359318656,1745919036224,-400.0,0.00035616,3]
[359318657,1745919036233,-287.58995608,0.00035616,3]
[359318658,1745919036243,-400.0,0.00035616,3]
[359318659,1745919036252,-400.0,0.00035616,3]
[359318660,1745919036262,-505.10096773,0.00035616,3]
[359318661,1745919036272,-400.0,0.00035616,3]
[359318662,1745919036282,-400.76460487,0.00035616,3]
[359318663,1745919036292,-400.0,0.00035616,3]
[359318664,1745919036301,-400.0,0.00035616,3]
[359318665,1745919036311,-400.0,0.00035616,3]
[359318666,1745919036320,-917.86,0.00035616,3]
[359318667,1745919036329,-400.0,0.00035616,3]
[359318668,1745919036339,-400.0,0.00035616,3]
[359318669,1745919036348,-400.0,0.00035616,3]
[359318670,1745919036359,-400.0,0.00035616,3]
[359318671,1745919036368,-400.0,0.00035616,3]
[359318672,1745919036378,-400.0,0.00035616,3]
[359318673,1745919036389,-400.0,0.00035616,3]
[359318674,1745919036398,-400.0,0.00035616,3]
[359318675,1745919036407,-400.0,0.00035616,3]
[359318676,1745919036417,-400.0,0.00035616,3]
[359318677,1745919036426,-457.32,0.00035616,3]
[359318678,1745919036436,-400.0,0.00035616,3]
[359318679,1745919036445,-235.23991306,0.00035616,3]
[359318680,1745919036455,-845.06,0.00035616,3]
[359318681,1745919036465,-400.0,0.00035616,3]
[359318682,1745919036475,-400.0,0.00035616,3]
[359318683,1745919036484,-533.88,0.00035616,3]
[359318684,1745919036494,-500.0,0.00035616,3]
[359318685,1745919036504,-400.0,0.00035616,3]
[359318686,1745919036514,-400.0,0.00035616,3]
[359318687,1745919036524,-720.97,0.00035616,3]
[359318688,1745919036534,-400.0,0.00035616,3]
[359318689,1745919036547,-365.34957918,0.00035616,3]
[359318690,1745919036556,-400.0,0.00035616,3]
[359318691,1745919036564,-400.0,0.00035616,3]
[359318692,1745919036574,-400.0,0.00035616,3]
[359318693,1745919036583,-400.0,0.00035616,3]
[359318694,1745919036593,-3415.47,0.00035616,3]
[359318695,1745919036603,-400.0,0.00035616,3]
[359318696,1745919036612,-151.0,0.00035616,2]
[359318697,1745919036622,-2085.67,0.00035616,3]
[359318698,1745919036632,-1362.41,0.00035616,3]
[359318699,1745919036646,-400.0,0.00035616,3]
[359318700,1745919036656,-752.72,0.00035616,3]
[359318701,1745919036665,-420.72,0.00035616,3]
[359318702,1745919036675,-400.0,0.00035616,3]
[359318703,1745919036687,-400.0,0.00035616,3]
[359318704,1745919036697,-400.0,0.00035616,3]
[359318705,1745919036708,-400.0,0.00035616,3]
[359318706,1745919036719,-588.07,0.00035616,3]
[359318707,1745919036729,-400.0,0.00035616,3]
[359318708,1745919036738,-400.0,0.00035616,3]
[359318709,1745919036747,-907.69,0.00035616,3]
[359318710,1745919036757,-400.0,0.00035616,3]
[359318711,1745919036766,-400.0,0.00035616,3]
[359318712,1745919036776,-400.0,0.00035616,3]
[359318713,1745919036786,-400.0,0.00035616,3]
[359318714,1745919036795,-419.66,0.00035616,3]
[359318715,1745919036806,-400.0,0.00035616,3]
[359318716,1745919036815,-400.0,0.00035616,3]
[359318717,1745919036824,-400.0,0.00035616,3]
[359318718,1745919036834,-400.0,0.00035616,3]
[359318719,1745919036844,-400.0,0.00035616,3]
[359318720,1745919036854,-400.0,0.00035616,3]
[359318721,1745919036865,-400.0,0.00035616,3]
[359318722,1745919036875,-1058.49400204,0.00035616,3]
[359318733,1745919038154,-197.30483431,0.00024558,2]
[359318734,1745919038164,-500.0,0.00025321,2]
[359318735,1745919038174,-500.0,0.00025321,2]
[359318736,1745919038184,-580.38861772,0.00025321,2]
[359318737,1745919038194,-500.0,0.00025321,2]
[359318738,1745919038205,-500.0,0.00025321,2]
[359318739,1745919038215,-169.88523715,0.00025321,2]
[359318740,1745919038314,-330.11476285,0.00025321,2]
[359318742,1745919038324,-500.0,0.00025321,2]
[359318745,1745919038334,-500.0,0.00025321,2]
[359318747,1745919038344,-500.0,0.00025321,2]
[359318749,1745919038353,-500.0,0.00025321,2]
[359318751,1745919038363,-500.0,0.00025321,2]
[359318753,1745919038373,-600.0,0.00025321,2]
[359318755,1745919038382,-5143.18599796,0.00035616,3]
[359318757,1745919038392,-400.0,0.00035616,3]
[359318758,1745919038402,-2428.9,0.00035616,3]
[359318759,1745919038412,-671.24,0.00035616,3]
[359318760,1745919038421,-400.0,0.00035616,3]
[359318761,1745919038431,-400.0,0.00035616,3]
[359318762,1745919038440,-400.0,0.00035616,3]
[359318763,1745919038449,-400.0,0.00035616,3]
[359318764,1745919038459,-1299.21,0.00035616,3]
[359318765,1745919038469,-400.0,0.00035616,3]
[359318766,1745919038478,-400.0,0.00035616,3]
[359318767,1745919038488,-400.0,0.00035616,3]
[359318768,1745919038500,-504.96613365,0.00035616,3]
[359318769,1745919038511,-400.0,0.00035616,3]
[359318770,1745919038521,-447.87,0.00035616,3]
[359318771,1745919038532,-475.61370495,0.00035616,3]
[359318772,1745919038544,-1932.35,0.00035616,3]
[359318773,1745919038554,-400.0,0.00035616,3]
[359318774,1745919038564,-500.0,0.00035616,3]
[359318775,1745919038573,-400.0,0.00035616,3]
[359318776,1745919038583,-400.0,0.00035616,3]
[359318777,1745919038593,-400.0,0.00035616,3]
[359318778,1745919038602,-695.79,0.00035616,3]
[359318779,1745919038612,-695.79,0.00035616,3]
[359318780,1745919038621,-695.79,0.00035616,3]
[359318781,1745919038632,-695.79,0.00035616,3]
[359318782,1745919038646,-695.79,0.00035616,3]
[359318783,1745919038655,-695.79,0.00035616,3]
[359318784,1745919038665,-695.79,0.00035616,3]
[359318785,1745919038674,-695.79,0.00035616,3]
[359318786,1745919038685,-695.79,0.00035616,3]
[359318787,1745919038695,-400.984575,0.00035616,3]
[359318788,1745919038705,-695.79,0.00035616,3]
[359318789,1745919038716,-695.79,0.00035616,3]
[359318790,1745919038726,-695.79,0.00035616,3]
[359318791,1745919038736,-695.79,0.00035616,3]
[359318792,1745919038746,-695.79,0.00035616,3]
[359318793,1745919038939,-695.79,0.00035616,3]
[359318794,1745919038949,-264.19119421,0.00035616,3]
[359318795,1745919038963,-431.59880579,0.00035616,3]
[359318796,1745919038972,-695.79,0.00035616,3]
[359318797,1745919038982,-695.79,0.00035616,3]
[359318798,1745919038991,-986.87,0.00035616,3]
[359318799,1745919039000,-301.02711361,0.00035616,3]
[359318800,1745919039010,-695.79,0.00035616,3]
[359318801,1745919039020,-695.79,0.00035616,3]
[359318802,1745919039029,-695.79,0.00035616,3]
[359318803,1745919039039,-400.0,0.00035616,3]
[359318804,1745919039048,-695.79,0.00035616,3]
[359318805,1745919039057,-695.79,0.00035616,3]
[359318806,1745919039067,-695.95621826,0.00035616,3]
[359318807,1745919039076,-400.0,0.00035616,3]
[359318808,1745919039085,-400.0,0.00035616,3]
[359318809,1745919039094,-470.55581485,0.00035616,3]
[359318863,1745919040554,-1000.0,0.00024558,2]
[359318865,1745919040564,-237.42791061,0.000269,7]
[359318867,1745919040574,-766.48418515,0.00035616,3]
[359318869,1745919040583,-400.0,0.00035616,3]
[359318871,1745919040593,-400.0,0.00035616,3]
[359318873,1745919040602,-388.35396439,0.00035616,3]
[359318875,1745919040612,-324.77925716,0.00035616,3]
[359318877,1745919040621,-400.0,0.00035616,3]
[359318879,1745919040630,-1045.3,0.00035616,3]
[359318881,1745919040642,-395.73851745,0.00035616,3]
[359318883,1745919040652,-400.0,0.00035616,3]
[359318885,1745919040661,-1915.97,0.00035616,3]
[359318887,1745919040671,-207.78798204,0.00035616,3]
[359318889,1745919040681,-400.0,0.00035616,3]
[359318891,1745919040690,-1072.15,0.00035616,3]
[359318893,1745919040699,-400.0,0.00035616,3]
[359318895,1745919040709,-400.0,0.00035616,3]
[359318897,1745919040719,-400.0,0.00035616,3]
[359318899,1745919040729,-400.0,0.00035616,3]
[359318901,1745919040739,-400.0,0.00035616,3]
[359318903,1745919040748,-400.0,0.00035616,3]
[359318905,1745919040757,-400.0,0.00035616,3]
[359318907,1745919040767,-1063.62,0.00035616,3]
[359318909,1745919040776,-5112.02,0.00035616,3]
[359318911,1745919040787,-403.49,0.00035616,3]
[359318913,1745919040797,-151.0,0.00035616,14]
[359318915,1745919040806,-151.0,0.00035616,14]
[359318917,1745919040816,-400.0,0.00035616,3]
[359318919,1745919040826,-400.0,0.00035616,3]
[359318921,1745919040835,-400.0,0.00035616,3]
[359318923,1745919040845,-400.0,0.00035616,3]
[359318925,1745919040854,-400.0,0.00035616,3]
[359318927,1745919040863,-151.0,0.00035616,14]
[359318929,1745919040872,-151.0,0.00035616,14]
[359318931,1745919040881,-400.0,0.00035616,3]
[359318933,1745919040891,-2919.84,0.00035616,3]
[359318935,1745919040900,-402.71239459,0.00035616,3]
[359318937,1745919040909,-400.0,0.00035616,3]
[359318939,1745919040918,-400.0,0.00035616,3]
[359318941,1745919040927,-400.0,0.00035616,3]
[359318943,1745919040936,-400.0,0.00035616,3]
[359318945,1745919040946,-400.0,0.00035616,3]
[359318947,1745919040955,-400.0,0.00035616,3]
[359318949,1745919040965,-400.0,0.00035616,3]
[359318951,1745919040975,-400.0,0.00035616,3]
[359318953,1745919040984,-400.0,0.00035616,3]
[359318955,1745919040996,-151.0,0.00035616,14]
[359318957,1745919041006,-151.0,0.00035616,14]
[359318959,1745919041015,-304.24347437,0.00035616,3]
[359318961,1745919041024,-212.61368046,0.00035616,3]
[359318963,1745919041034,-400.0,0.00035616,3]
[359318965,1745919041043,-400.0,0.00035616,3]
[359318967,1745919041052,-312.40624181,0.00035616,3]
[359318969,1745919041062,-435.84,0.00035616,3]
[359318971,1745919041073,-400.0,0.00035616,3]
[359318973,1745919041082,-400.0,0.00035616,3]
[359318975,1745919041091,-400.0,0.00035616,3]
[359318977,1745919041100,-400.0,0.00035616,3]
[359318978,1745919041110,-400.0,0.00035616,3]
[359318980,1745919041119,-1645.83,0.00035616,3]
[359318982,1745919041128,-531.15995156,0.00035616,3]
[359318984,1745919041137,-219.29029717,0.00035616,3]
[359318986,1745919041147,-400.0,0.00035616,3]
[359318988,1745919041156,-2508.7,0.00035616,3]
[359318990,1745919041165,-400.0,0.00035616,3]
[359318992,1745919041174,-400.0,0.00035616,3]
[359318994,1745919041184,-400.0,0.00035616,3]
[359318996,1745919041193,-337.57034415,0.00035616,3]
[359318999,1745919041204,-400.0,0.00035616,3]
[359319001,1745919041217,-400.0,0.00035616,3]
[359319003,1745919041226,-151.0,0.00035616,14]
[359319004,1745919041236,-867.81,0.00035616,3]
[359319007,1745919041246,-400.0,0.00035616,3]
[359319008,1745919041255,-444.8,0.00035616,3]
[359319010,1745919041264,-402.93517681,0.00035616,3]
[359319012,1745919041274,-744.53,0.00035616,3]
[359319014,1745919041283,-8685.22,0.00035616,3]
[359319016,1745919041292,-400.0,0.00035616,3]
[359319018,1745919041304,-520.72,0.00035616,3]
[359319020,1745919041314,-400.0,0.00035616,3]
[359319022,1745919041323,-2647.02,0.00035616,3]
[359319024,1745919041332,-408.41507553,0.00035616,3]
[359319026,1745919041342,-400.0,0.00035616,3]
[359319028,1745919041351,-400.0,0.00035616,3]
[359319030,1745919041361,-233.16021819,0.00035616,3]
[359319032,1745919041370,-400.0,0.00035616,3]
[359319034,1745919041379,-2523.21,0.00035616,3]
[359319036,1745919041388,-151.0,0.00035616,2]
[359319038,1745919041398,-151.0,0.00035616,2]
[359319040,1745919041407,-4030.3,0.00035616,3]
[359319042,1745919041416,-400.0,0.00035616,3]
[359319044,1745919041426,-400.0,0.00035616,3]
[359319047,1745919041436,-518.08,0.00035616,3]
[359319048,1745919041445,-940.59,0.00035616,3]
[359319051,1745919041454,-1030.56,0.00035616,3]
[359319053,1745919041464,-3097.08,0.00035616,3]
[359319055,1745919041473,-207.00300614,0.00035616,3]
[359319057,1745919041482,-406.97651531,0.00035616,3]
[359319059,1745919041491,-400.0,0.00035616,3]
[359319061,1745919041501,-400.0,0.00035616,3]
[359319062,1745919041510,-695.41,0.00035616,3]
[359319064,1745919041519,-400.0,0.00035616,3]
[359319066,1745919041528,-403.2792614,0.00035616,3]
[359319068,1745919041537,-400.0,0.00035616,3]
[359319070,1745919041546,-400.0,0.00035616,3]
[359319072,1745919041555,-4297.18,0.00035616,3]
[359319074,1745919041565,-3859.28,0.00035616,3]
[359319076,1745919041574,-400.0,0.00035616,3]
[359319078,1745919041583,-715.1,0.00035616,3]
[359319080,1745919041591,-400.0,0.00035616,3]
[359319082,1745919041600,-402.05120781,0.00035616,3]
[359319084,1745919041610,-400.0,0.00035616,3]
[359319086,1745919041619,-400.0,0.00035616,3]
[359319088,1745919041629,-400.0,0.00035616,3]
[359319090,1745919041640,-400.0,0.00035616,3]
[359319092,1745919041650,-400.0,0.00035616,3]
[359319094,1745919041659,-400.0,0.00035616,3]
[359319096,1745919041668,-400.0,0.00035616,3]
[359319098,1745919041678,-566.81,0.00035616,3]
[359319100,1745919041687,-2354.52,0.00035616,3]
[359319102,1745919041697,-400.0,0.00035616,3]
[359319104,1745919041706,-400.0,0.00035616,3]
[359319106,1745919041716,-400.0,0.00035616,3]
[359319108,1745919041726,-1021.15,0.00035616,3]
[359319110,1745919041735,-400.0,0.00035616,3]
[359319112,1745919041745,-401.28073085,0.00035616,3]
[359319114,1745919041754,-5528.15,0.00035616,3]
[359319116,1745919041763,-641.59,0.00035616,3]
[359319118,1745919041773,-400.0,0.00035616,3]
[359319120,1745919041783,-400.0,0.00035616,3]
[359319122,1745919041792,-200.0,0.00035616,3]
[359319124,1745919041802,-722.94,0.00035616,3]
[359319126,1745919041811,-856.15,0.00035616,3]
[359319128,1745919041821,-400.0,0.00035616,3]
[359319130,1745919041830,-400.0,0.00035616,3]
[359319132,1745919041839,-1448.02,0.00035616,3]
[359319134,1745919041849,-400.0,0.00035616,3]
[359319136,1745919041858,-866.15,0.00035616,3]
[359319138,1745919041868,-1027.62,0.00035616,3]
[359319140,1745919041877,-400.0,0.00035616,3]
[359319142,1745919041887,-400.0,0.00035616,3]
[359319144,1745919041896,-400.0,0.00035616,3]
[359319146,1745919041905,-471.61,0.00035616,3]
[359319148,1745919041915,-400.0,0.00035616,3]
[359319150,1745919041924,-400.0,0.00035616,3]
[359319152,1745919041933,-400.0,0.00035616,3]
[359319154,1745919041943,-5520.73,0.00035616,3]
[359319156,1745919041952,-400.0,0.00035616,3]
[359319158,1745919041961,-2128.11,0.00035616,3]
[359319160,1745919041971,-400.0,0.00035616,3]
[359319162,1745919041980,-400.0,0.00035616,3]
[359319164,1745919041990,-400.0,0.00035616,3]
[359319166,1745919041999,-400.0,0.00035616,3]
[359319168,1745919042008,-400.0,0.00035616,3]
[359319170,1745919042019,-400.0,0.00035616,3]
[359319172,1745919042029,-3508.57,0.00035616,3]
[359319174,1745919042039,-400.0,0.00035616,3]
[359319176,1745919042048,-400.0,0.00035616,3]
[359319178,1745919042058,-204.3296222,0.00035616,3]
[359319180,1745919042067,-400.0,0.00035616,3]
[359319182,1745919042076,-957.15,0.00035616,3]
[359319184,1745919042085,-3882.21,0.00035616,3]
[359319186,1745919042094,-202.00480888,0.00035616,3]
[359319188,1745919042104,-400.0,0.00035616,3]
[359319190,1745919042113,-400.0,0.00035616,3]
[359319192,1745919042123,-400.0,0.00035616,2]
[359319194,1745919042133,-400.0,0.00035616,3]
[359319196,1745919042143,-400.0,0.00035616,3]
[359319198,1745919042152,-400.0,0.00035616,3]
[359319200,1745919042161,-400.0,0.00035616,3]
[359319202,1745919042171,-485.63019219,0.00035616,3]
[359319204,1745919042180,-400.0,0.00035616,3]
[359319206,1745919042189,-502.52171935,0.00035616,3]
[359319208,1745919042199,-202.26393237,0.00035616,3]
[359319210,1745919042208,-2087.28,0.00035616,3]
[359319212,1745919042219,-554.72,0.00035616,3]
[359319214,1745919042228,-2404.85,0.00035616,3]
[359319216,1745919042237,-400.0,0.00035616,3]
[359319218,1745919042246,-500.0,0.00035616,3]
[359319220,1745919042256,-400.0,0.00035616,3]
[359319222,1745919042265,-400.0,0.00035616,3]
[359319224,1745919042276,-400.0,0.00035616,3]
[359319226,1745919042286,-400.0,0.00035616,3]
[359319228,1745919042297,-400.0,0.00035616,3]
[359319230,1745919042306,-493.67,0.00035616,3]
[359319232,1745919042319,-400.0,0.00035616,3]
[359319234,1745919042328,-400.0,0.00035616,3]
[359319236,1745919042338,-500.0,0.00035616,2]
[359319238,1745919042347,-557.02,0.00035616,3]
[359319240,1745919042357,-400.0,0.00035616,3]
[359319242,1745919042366,-151.0,0.00035616,14]
[359319244,1745919042375,-1354.55,0.00035616,3]
[359319246,1745919042384,-151.0,0.00035616,14]
[359319248,1745919042393,-478.47,0.00035616,3]
[359319250,1745919042402,-2753.74,0.00035616,3]
[359319252,1745919042411,-12445.98,0.00035616,3]
[359319254,1745919042420,-400.0,0.00035616,3]
[359319256,1745919042429,-400.0,0.00035616,3]
[359319258,1745919042438,-400.0,0.00035616,3]
[359319260,1745919042448,-3581.8,0.00035616,3]
[359319262,1745919042458,-1213.49,0.00035616,3]
[359319264,1745919042467,-4538.74,0.00035616,3]
[359319266,1745919042477,-400.0,0.00035616,3]
[359319268,1745919042487,-400.0,0.00035616,3]
[359319270,1745919042496,-400.0,0.00035616,3]
[359319272,1745919042506,-676.05,0.00035616,3]
[359319274,1745919042515,-400.0,0.00035616,3]
[359319277,1745919042527,-400.0,0.00035616,3]
[359319279,1745919042536,-432.72394263,0.00035616,3]
[359319281,1745919042545,-201.52933861,0.00035616,3]
[359319282,1745919042556,-400.0,0.00035616,3]
[359319285,1745919042565,-400.0,0.00035616,3]
[359319287,1745919042574,-2777.71,0.00035616,3]
[359319289,1745919042583,-151.0,0.00035616,14]
[359319290,1745919042591,-151.0,0.00035616,14]
[359319292,1745919042600,-823.91,0.00035616,3]
[359319294,1745919042610,-404.76137485,0.00035616,3]
[359319297,1745919042619,-400.0,0.00035616,3]
[359319299,1745919042629,-400.0,0.00035616,3]
[359319301,1745919042640,-400.0,0.00035616,3]
[359319303,1745919042650,-8460.37,0.00035616,3]
[359319305,1745919042660,-566.77,0.00035616,3]
[359319307,1745919042669,-1582.67,0.00035616,3]
[359319309,1745919042679,-400.0,0.00035616,3]
[359319311,1745919042688,-3502.23,0.00035616,3]
[359319313,1745919042697,-400.0,0.00035616,3]
[359319315,1745919042707,-1207.7,0.00035616,3]
[359319317,1745919042716,-794.9,0.00035616,3]
[359319319,1745919042725,-400.0,0.00035616,3]
[359319322,1745919042735,-773.69557299,0.00035616,3]
[359319387,1745919043389,-1804.67442701,0.00035616,3]
[359319388,1745919043397,-228.49862426,0.00035616,3]